bitfinex-derivatives/quotes_ETHF0:USTF0_20250105
["timestamp","ask_amount","ask_price","bid_price","bid_amount"]
[1736045022757,0.9970284,3637.8,3637.6,0.4189]
[1736045024162,0.9970284,3637.8,3637.6,4.73587459]
[1736045025364,0.9970284,3637.8,3637.7,4.31697459]
[1736045026254,0.27492,3638.0,3637.7,4.31697459]
[1736045026458,0.27491,3638.1,3637.7,4.31697459]
[1736045026661,0.9970284,3638.0,3637.7,4.31697459]
[1736045027768,0.9970284,3638.0,3637.9,4.31697459]
[1736045030459,3.02167814,3638.4,3637.9,4.31697459]
[1736045030460,2.59307814,3638.4,3637.9,4.31697459]
[1736045030771,2.15807814,3638.4,3638.2,0.9970284]
[1736045031371,5.36587814,3638.8,3638.3,4.31697459]
[1736045031573,5.36587814,3638.8,3638.4,1.2719084]
[1736045031968,5.36587814,3638.8,3638.5,0.4426]
[1736045032274,5.36587814,3638.8,3638.6,0.8565]
[1736045032774,5.64072814,3638.8,3638.6,0.8565]
[1736045033073,3.48265,3638.8,3638.7,4.31697459]
[1736045034167,3.2078,3638.8,3638.7,4.31697459]
[1736045034967,3.2078,3638.8,3638.6,5.17347459]
[1736045036368,3.2078,3638.8,3638.6,0.8565]
[1736045036775,0.27486,3638.8,3638.6,0.8565]
[1736045037276,1.2718784,3638.9,3638.6,0.8565]
[1736045037478,1.2718784,3638.9,3638.6,1.8535284]
[1736045037680,1.2718784,3638.9,3638.6,2.1283984]
[1736045037681,0.9970284,3638.9,3638.6,2.1283984]
[1736045037868,4.2048284,3639.1,3638.8,0.9970284]
[1736045038273,4.2048284,3639.1,3638.6,1.8535284]
[1736045038475,4.2048284,3639.1,3638.7,0.27485]
[1736045038775,4.4796584,3639.1,3638.7,0.27485]
[1736045038977,4.4796584,3639.1,3638.6,6.44536299]
[1736045039173,0.9970284,3638.9,3638.6,6.44536299]
[1736045040178,0.9970284,3638.9,3638.6,9.65316299]
[1736045040878,1.2718584,3639.1,3638.7,0.27486]
[1736045041976,0.27482,3639.2,3638.8,1.2718784]
[1736045042471,0.27482,3639.2,3638.9,0.413]
[1736045043078,0.68592,3639.2,3638.9,0.413]
[1736045044080,0.27483,3639.1,3638.9,0.413]
[1736045044879,0.4111,3639.2,3638.9,0.413]
[1736045045181,0.68592,3639.2,3638.9,0.413]
[1736045045881,0.27482,3639.2,3638.9,0.413]
[1736045046080,1.6865484,3639.3,3638.9,0.68784]
[1736045046283,0.27483,3639.2,3638.9,0.413]
[1736045047275,1.4117284,3639.3,3638.9,0.413]
[1736045047482,0.27483,3639.1,3638.9,0.413]
[1736045047985,0.27483,3639.2,3638.9,0.413]
[1736045051689,1.6865484,3639.3,3638.9,0.68784]
[1736045053496,1.4117284,3639.3,3638.9,0.68784]
[1736045053701,0.27482,3639.2,3638.9,0.413]
[1736045054701,0.27482,3639.2,3638.9,0.68784]
[1736045055288,1.4117284,3639.3,3639.0,0.27484]
[1736045056390,1.4117284,3639.3,3639.0,0.9970284]
[1736045056391,0.4147,3639.3,3639.0,0.9970284]
[1736045056590,0.4147,3639.3,3639.1,0.4055]
[1736045056900,0.68951,3639.3,3639.1,0.4055]
[1736045057597,0.4147,3639.3,3639.1,0.68033]
[1736045057898,0.4147,3639.3,3639.1,0.4055]
[1736045057899,0.68951,3639.3,3639.1,0.4055]
[1736045058795,0.4147,3639.3,3639.1,0.4055]
[1736045060495,0.4147,3639.3,3639.1,0.68033]
[1736045062701,3.2078,3640.0,3639.2,4.2048284]
[1736045062898,3.2078,3640.0,3639.9,1.2717984]
[1736045063800,2.56907814,3640.1,3639.9,0.9970284]
[1736045064002,2.56907814,3640.1,3640.0,0.71716]
[1736045064203,2.56907814,3640.1,3640.0,1.14886]
[1736045064906,0.411,3640.1,3640.0,1.14886]
[1736045066007,0.4448,3640.4,3640.0,0.8741]
[1736045066308,0.4448,3640.4,3640.2,0.9970284]
[1736045067406,0.4438,3640.5,3640.4,0.27473]
[1736045068803,0.4438,3640.5,3640.3,0.27473]
[1736045069398,0.4438,3640.5,3640.2,0.9970284]
[1736045069611,0.4438,3640.5,3640.2,0.27474]
[1736045069612,0.9970284,3640.4,3640.2,0.27474]
[1736045070809,0.9970284,3640.4,3640.0,0.8741]
[1736045071009,0.9970284,3640.2,3639.9,4.31697459]
[1736045071310,0.9970284,3640.2,3639.9,4.59174459]
[1736045071513,0.4349,3640.1,3639.9,4.59174459]
[1736045071712,0.4349,3640.1,3639.9,0.27477]
[1736045072209,0.4349,3640.1,3640.0,0.27476]
[1736045073506,0.4349,3640.1,3639.9,0.9970284]
[1736045073705,0.4349,3640.1,3639.9,1.2717984]
[1736045073908,0.4331,3640.0,3639.9,1.2717984]
[1736045076416,0.4331,3640.0,3639.8,4.31697459]
[1736045076719,1.7048984,3640.0,3639.8,4.31697459]
[1736045076911,0.4183,3639.9,3639.8,4.31697459]
[1736045077413,0.4183,3639.9,3639.6,5.58879299]
[1736045078518,0.4183,3639.9,3639.7,0.27478]
[1736045078718,0.4183,3639.9,3639.7,0.70678]
[1736045079821,0.4331,3640.0,3639.9,0.27477]
[1736045080718,0.4331,3640.0,3639.8,0.27477]
[1736045080919,0.8436,3640.0,3639.8,0.27477]
[1736045081218,0.8436,3640.0,3639.9,0.27477]
[1736045082322,0.8436,3640.0,3639.8,0.27477]
[1736045083320,0.8436,3640.0,3639.7,0.432]
[1736045083510,0.8436,3640.0,3639.9,0.27477]
[1736045085122,0.4331,3640.0,3639.9,0.27477]
[1736045085327,0.4331,3640.0,3639.8,0.9970284]
[1736045085520,0.4331,3640.0,3639.8,1.2717984]
[1736045085823,0.4331,3640.0,3639.9,0.27477]
[1736045089631,3.2078,3640.3,3640.0,0.27476]
[1736045089818,3.6234,3640.3,3640.1,0.4474]
[1736045092020,3.6234,3640.3,3640.1,0.72215]
[1736045092223,3.6234,3640.3,3640.1,0.4474]
[1736045101230,3.6234,3640.3,3640.1,0.72215]
[1736045101435,3.6234,3640.3,3640.1,0.4474]
[1736045104835,3.6234,3640.3,3640.1,4.76437459]
[1736045105732,3.6234,3640.3,3640.1,0.4474]
[1736045105937,0.9970284,3640.2,3640.1,0.4474]
[1736045107040,0.27475,3640.1,3640.0,4.31697459]
[1736045108731,3.92800939,3640.1,3639.8,4.31697459]
[1736045108935,1.4111284,3640.0,3639.8,4.31697459]
[1736045110137,2.16135039,3640.0,3639.9,4.31697459]
[1736045110335,2.16135039,3640.0,3639.9,4.59174459]
[1736045111439,2.16135039,3640.2,3640.0,0.27476]
[1736045111633,2.16135039,3640.2,3640.1,0.8683]
[1736045112835,3.57397879,3640.3,3640.1,7.3432708]
[1736045113637,2.16135039,3640.2,3640.1,7.3432708]
[1736045116050,2.16135039,3640.2,3640.1,7.6180208]
[1736045116962,2.16135039,3640.4,3640.1,16.51466526]
[1736045117155,2.16135039,3640.4,3640.3,0.27474]
[1736045118157,2.16135039,3640.5,3640.3,8.8860559]
[1736045118461,2.16135039,3640.5,3640.4,0.4279]
[1736045120754,2.16135039,3640.5,3640.4,1.6996584]
[1736045121062,6.44873975,3640.7,3640.4,1.4249284]
[1736045121063,2.16135039,3640.6,3640.4,1.4249284]
[1736045121262,2.16135039,3640.6,3640.5,0.27472]
[1736045121459,2.16135039,3640.6,3640.5,0.71692]
[1736045122258,3.2078,3640.7,3640.5,0.4422]
[1736045122457,3.2078,3640.7,3640.6,0.69612]
[1736045122661,3.2078,3640.7,3640.6,1.6931484]
[1736045123158,3.2078,3640.7,3640.6,0.4214]
[1736045123560,3.2078,3640.7,3640.6,6.89894182]
[1736045124158,2.16135039,3640.8,3640.6,6.89894182]
[1736045125059,2.16135039,3640.8,3640.6,7.17365182]
[1736045125259,2.16135039,3640.8,3640.6,6.89894182]
[1736045125755,2.16135039,3640.8,3640.7,4.5905449]
[1736045127562,2.16135039,3641.3,3640.9,0.27469]
[1736045127761,2.16135039,3641.3,3641.1,1.2717084]
[1736045127961,2.16135039,3641.3,3641.2,0.4483]
[1736045128767,6.07940039,3641.5,3641.2,4.75993773]
[1736045129260,0.9970284,3641.4,3641.2,4.75993773]
[1736045129765,0.9970284,3641.4,3641.2,0.4483]
[1736045130761,3.2078,3641.5,3641.2,0.4483]
[1736045131665,3.48245,3641.5,3641.2,0.4483]
[1736045132070,0.27466,3641.4,3641.2,0.4483]
[1736045133062,0.9970284,3641.4,3641.2,0.4483]
[1736045133261,0.9970284,3641.4,3641.0,5.18543773]
[1736045133462,0.27468,3641.1,3641.0,5.18543773]
[1736045133861,0.9970284,3641.2,3641.0,5.18543773]
[1736045134162,0.9970284,3641.2,3641.0,4.75123773]
[1736045134354,3.48248,3641.1,3641.0,4.31163773]
[1736045135465,3.2078,3641.1,3640.8,0.4108]
[1736045135669,0.27471,3640.7,3640.6,4.31163773]
[1736045135870,1.2717384,3640.7,3640.6,4.31163773]
[1736045137267,1.2717384,3640.7,3640.3,0.8313]
[1736045137468,0.4359,3640.6,3640.3,0.8313]
[1736045138169,0.8454,3640.6,3640.3,0.8313]
[1736045139172,1.12012,3640.6,3640.3,5.14293773]
[1736045141871,1.12012,3640.6,3640.3,0.8313]
[1736045143265,1.12012,3640.6,3640.3,5.14293773]
[1736045143463,0.27473,3640.5,3640.3,5.14293773]
[1736045143879,1.12012,3640.6,3640.3,5.14293773]
[1736045144269,2.16135039,3641.0,3640.4,4.2048284]
[1736045144564,2.16135039,3641.0,3640.9,1.2717184]
[1736045144768,2.16889014,3641.1,3640.9,5.2018568]
[1736045145068,2.16889014,3641.1,3641.0,0.68969]
[1736045146370,2.16889014,3641.1,3641.0,2.89612804]
[1736045146771,0.4073,3641.9,3641.5,0.27464]
[1736045147675,0.4073,3641.9,3641.6,0.27463]
[1736045147876,0.4073,3641.9,3641.7,0.27463]
[1736045148568,0.4073,3641.9,3641.7,0.72123]
[1736045148769,0.4453,3642.1,3641.7,0.72123]
[1736045148974,0.4453,3642.1,3641.9,0.27462]
[1736045150382,0.4453,3642.1,3641.9,0.27461]
[1736045152473,0.4453,3642.1,3642.0,0.27461]
[1736045154079,0.4453,3642.1,3641.8,2.20643804]
[1736045154378,0.4453,3642.1,3641.9,0.27462]
[1736045154975,0.4453,3642.1,3641.8,2.48105804]
[1736045155572,0.4453,3642.1,3641.8,2.20643804]
[1736045156179,0.4453,3642.1,3641.9,0.27462]
[1736045156580,0.4453,3642.1,3641.8,0.27462]
[1736045158578,0.4453,3642.1,3641.7,0.4466]
[1736045159081,0.27462,3641.9,3641.7,0.4466]
[1736045159284,0.69951,3642.0,3641.7,0.4466]
[1736045159782,0.27462,3641.9,3641.7,0.4466]
[1736045160183,0.70169486,3642.0,3641.7,0.4466]
[1736045160577,0.42708486,3642.0,3641.7,0.4466]
[1736045167979,0.70169486,3642.0,3641.7,0.4466]
[1736045168175,0.70169486,3642.0,3641.9,0.99569053]
[1736045168380,0.42708486,3642.0,3641.9,0.99569053]
[1736045169287,0.70169486,3642.0,3641.9,0.99569053]
[1736045170187,0.00218486,3642.0,3641.9,0.99569053]
[1736045170384,0.00218486,3642.0,3641.9,1.27031053]
[1736045170588,0.00218486,3642.0,3641.9,0.99569053]
[1736045172579,0.00218486,3642.0,3641.9,1.27031053]
[1736045172783,0.00218486,3642.0,3641.9,0.99569053]
[1736045173191,0.00218486,3642.0,3641.6,4.74230907]
[1736045173486,0.27462,3641.9,3641.8,0.99569053]
[1736045173985,1.40877539,3642.0,3641.6,4.30140907]
[1736045174189,0.27465,3641.6,3641.4,4.30140907]
[1736045174389,1.09555,3641.5,3641.4,4.30140907]
[1736045175291,0.8209,3641.5,3641.4,4.30140907]
[1736045175492,0.8209,3641.5,3641.3,0.99569053]
[1736045175885,1.09555,3641.5,3641.3,0.99569053]
[1736045176088,0.4118,3641.4,3641.3,0.99569053]
[1736045176394,0.4118,3641.4,3641.1,4.72790907]
[1736045176788,0.4118,3641.4,3641.1,0.70118]
[1736045176993,0.4118,3641.4,3641.2,0.8212]
[1736045177486,0.8209,3641.5,3641.2,0.8212]
[1736045177487,0.8209,3641.5,3641.3,2.20698488]
[1736045180892,0.4118,3641.9,3641.3,2.20698488]
[1736045181196,0.00218486,3642.0,3641.7,0.27463]
[1736045181386,0.00218486,3642.0,3641.8,1.2778]
[1736045184399,0.00218486,3642.0,3641.8,1.55242]
[1736045184597,0.00218486,3642.0,3641.8,1.2778]
[1736045184997,0.00218486,3642.0,3641.9,0.27462]
[1736045186203,0.00218486,3642.0,3641.9,2.48160488]
[1736045187501,0.00218486,3642.0,3641.9,8.93371848]
[1736045190104,0.00218486,3642.0,3641.9,11.09292078]
[1736045191509,0.00218486,3642.0,3641.9,9.66647806]
[1736045198209,0.00218486,3642.0,3641.9,9.4501374]
[1736045200711,0.00218486,3642.0,3641.9,20.24085722]
[1736045206113,0.00218486,3642.0,3641.9,9.4501374]
[1736045210030,0.00218486,3642.0,3641.9,20.21764986]
[1736045217825,0.00218486,3642.0,3641.9,7.18487318]
[1736045218031,0.00218486,3642.0,3641.9,8.45481529]
[1736045219231,0.00218486,3642.0,3641.9,9.88588237]
[1736045220336,0.00218486,3642.0,3641.9,10.88120448]
[1736045220936,0.00218486,3642.0,3641.9,9.88588237]
[1736045221231,0.00218486,3642.0,3641.9,10.88120448]
[1736045221837,0.00218486,3642.0,3641.9,18.06128701]
[1736045223237,0.00218486,3642.0,3641.9,9.44534675]
[1736045223635,0.00218486,3642.0,3641.9,11.65782464]
[1736045224334,0.00218486,3642.0,3641.9,22.4253371]
[1736045225834,0.00218486,3642.0,3641.9,23.42065921]
[1736045227137,0.00218486,3642.0,3641.9,12.65314675]
[1736045227341,0.00218486,3642.0,3641.9,11.65782464]
[1736045227543,0.00218486,3642.0,3641.9,8.45002464]
[1736045231048,0.27458,3642.4,3641.9,8.45002464]
[1736045231238,0.27458,3642.4,3642.2,0.99532211]
[1736045231537,0.27459,3642.3,3642.2,0.32192211]
[1736045232145,0.27459,3642.3,3642.2,6.47571122]
[1736045232739,0.27458,3642.4,3642.2,7.47103333]
[1736045233337,0.00234022,3642.3,3642.2,7.47103333]
[1736045233536,3.23757642,3642.3,3642.2,5.3127079]
[1736045234646,0.00234022,3642.3,3642.2,0.99532211]
[1736045234947,0.00234022,3642.3,3642.2,1.26992211]
[1736045235148,0.00234022,3642.3,3642.2,2.10912211]
[1736045236643,0.00234022,3642.3,3642.2,9.29888266]
[1736045240551,0.00234022,3642.3,3642.2,7.88726055]
[1736045240751,0.00234022,3642.3,3642.2,8.88258266]
[1736045242659,0.00234022,3642.3,3642.2,9.32078266]
[1736045243457,0.00234022,3642.3,3642.2,9.76548266]
[1736045248059,0.00234022,3642.3,3642.2,21.26171396]
[1736045249357,0.00234022,3642.3,3642.2,9.76548266]
[1736045251152,0.00234022,3642.3,3642.2,7.18976055]
[1736045251349,0.00234022,3642.3,3642.2,8.18508266]
[1736045251751,0.00234022,3642.3,3642.2,8.45968266]
[1736045252164,0.00234022,3642.3,3642.2,1.26992211]
[1736045253357,0.00234022,3642.3,3642.2,9.89148204]
[1736045255663,0.00234022,3642.3,3642.2,17.07471275]
[1736045257070,0.00234022,3642.3,3642.2,8.45315282]
[1736045258355,0.00234022,3642.3,3642.2,8.88615282]
[1736045260756,0.00234022,3642.3,3642.2,7.89083071]
[1736045260965,0.00234022,3642.3,3642.2,7.45783071]
[1736045262068,0.00234022,3642.3,3642.2,16.07895612]
[1736045263364,0.00234022,3642.3,3642.2,7.45783071]
[1736045267460,0.00234022,3642.3,3642.2,16.07976094]
[1736045276279,0.00234022,3642.3,3642.2,15.80516094]
[1736045276882,0.00234022,3642.3,3642.2,8.62193023]
[1736045277778,0.00234022,3642.3,3642.2,8.89653023]
[1736045278573,0.00234022,3642.3,3642.2,0.2746]
[1736045278976,0.00234022,3642.3,3642.1,9.89185234]
[1736045279482,0.00234022,3642.3,3642.2,0.2746]
[1736045280181,0.00234022,3642.3,3642.2,8.89653023]
[1736045280774,0.00234022,3642.3,3642.2,8.62193023]
[1736045280976,0.00234022,3642.3,3642.2,8.89653023]
[1736045281680,0.00234022,3642.3,3642.2,16.0816219]
[1736045282878,0.00234022,3642.3,3642.2,15.8070219]
[1736045283076,0.00234022,3642.3,3642.2,16.80234401]
[1736045284483,0.00234022,3642.3,3642.2,17.07694401]
[1736045284677,0.00234022,3642.3,3642.2,8.45501378]
[1736045285980,0.00234022,3642.3,3642.2,1.26992211]
[1736045287080,0.00234022,3642.3,3642.2,9.89496896]
[1736045294286,0.00234022,3642.3,3642.2,15.81193231]
[1736045294485,0.00234022,3642.3,3642.2,16.08653231]
[1736045295076,0.00234022,3642.3,3642.2,15.81193231]
[1736045295283,4.48005233,3642.3,3642.2,13.92593231]
[1736045295891,9.48005233,3642.3,3642.2,13.92593231]
[1736045296094,9.20546233,3642.3,3642.1,6.73904685]
[1736045296292,0.2746,3642.2,3642.1,6.73904685]
[1736045297587,0.27461,3642.0,3641.9,4.31506395]
[1736045297788,1.26993211,3642.0,3641.9,4.31506395]
[1736045298885,0.27463,3641.8,3641.6,4.31506395]
[1736045299089,0.99532211,3641.7,3641.6,4.31506395]
[1736045300094,0.99532211,3641.7,3641.5,4.31506395]
[1736045300297,1.26996211,3641.7,3641.5,4.31506395]
[1736045300990,0.99532211,3641.7,3641.5,4.31506395]
[1736045301197,0.99532211,3641.7,3641.4,4.31506395]
[1736045301889,1.26995211,3641.7,3641.4,4.31506395]
[1736045302190,0.99532211,3641.7,3641.4,4.31506395]
[1736045302386,1.26996211,3641.7,3641.4,4.31506395]
[1736045305300,1.26996211,3641.7,3641.3,1.69878211]
[1736045305301,1.26996211,3641.7,3641.3,6.01384606]
[1736045307387,1.26996211,3641.7,3641.3,5.73918606]
[1736045307895,0.27466,3641.4,3641.3,4.31506395]
[1736045308092,4.20312211,3641.5,3641.2,4.31506395]
[1736045308296,1.69048211,3641.3,3641.2,4.31506395]
[1736045309698,1.41582211,3641.3,3640.8,0.4461]
[1736045309894,0.99532211,3641.0,3640.8,0.4461]
[1736045311289,4.20312211,3641.2,3640.8,1.44142211]
[1736045311494,4.20312211,3641.2,3641.0,0.27469]
[1736045311694,4.20312211,3641.2,3640.9,0.8229]
[1736045311695,4.20312211,3641.2,3640.9,1.09759]
[1736045313497,4.20312211,3641.2,3641.0,0.27469]
[1736045313998,4.20312211,3641.2,3640.9,1.09759]
[1736045314392,4.20312211,3641.2,3640.9,0.8229]
[1736045314591,1.26999211,3641.2,3640.9,0.8229]
[1736045315897,0.99532211,3641.4,3640.9,0.8229]
[1736045316107,1.26998211,3641.4,3641.0,0.27469]
[1736045316896,0.27467,3641.3,3640.9,1.09759]
[1736045318406,0.99532211,3641.4,3640.9,0.8229]
[1736045318708,0.27467,3641.2,3640.9,0.8229]
[1736045319001,1.26999211,3641.2,3640.9,0.8229]
[1736045319310,1.26999211,3641.2,3640.8,0.7208]
[1736045320406,1.26999211,3641.2,3640.9,0.27469]
[1736045320604,0.99532211,3641.2,3640.9,0.27469]
[1736045320902,0.27467,3641.3,3640.9,0.27469]
[1736045322599,0.27466,3641.3,3640.8,1.44142211]
[1736045324300,0.27466,3641.3,3640.9,0.27469]
[1736045329311,0.00195176,3641.5,3641.0,1.27000211]
[1736045329312,4.20507387,3641.5,3641.0,1.27000211]
[1736045329505,0.27466,3641.4,3641.0,1.27000211]
[1736045329906,0.27466,3641.4,3640.9,0.27469]
[1736045330106,0.27467,3641.3,3640.9,0.27469]
[1736045334415,0.27467,3641.2,3640.8,6.03118606]
[1736045335818,0.27467,3641.2,3640.8,1.71612211]
[1736045336017,0.70977,3641.2,3640.8,1.71612211]
[1736045338023,0.70977,3641.2,3640.8,6.03118606]
[1736045339123,0.70977,3641.2,3640.9,4.31506395]
[1736045340422,0.27468,3641.1,3640.9,4.31506395]
[1736045340618,1.13207,3641.2,3640.9,4.31506395]
[1736045341121,0.8574,3641.2,3640.9,4.31506395]
[1736045341425,3.42875951,3641.3,3640.9,4.58975395]
[1736045341826,3.15408951,3641.3,3641.0,0.27469]
[1736045342619,2.1587674,3641.2,3641.1,4.31506395]
[1736045344321,2.4334374,3641.2,3641.1,4.31506395]
[1736045345922,2.1587674,3641.2,3641.1,4.31506395]
[1736045346724,4.50814321,3641.3,3641.0,6.47259593]
[1736045348030,4.50814321,3641.3,3641.2,4.31854623]
[1736045349027,4.92030596,3641.3,3641.2,4.31854623]
[1736045350632,1.40748486,3641.3,3641.1,4.31854623]
[1736045350823,0.27467,3641.2,3641.1,4.31854623]
[1736045352236,0.27468,3641.1,3641.0,6.47259593]
[1736045353540,0.27468,3641.1,3640.8,9.05105448]
[1736045353541,0.27468,3641.1,3640.9,8.60495448]
[1736045354131,3.51809133,3641.2,3640.9,8.60495448]
[1736045354726,2.16286625,3641.0,3640.9,8.60495448]
[1736045356035,2.16286625,3641.0,3640.9,15.71177703]
[1736045357237,3.65559458,3641.1,3640.9,15.71177703]
[1736045358531,3.65559458,3641.1,3640.9,8.60495448]
[1736045359932,2.16292127,3641.0,3640.9,8.60495448]
[1736045361434,2.16292127,3641.0,3640.9,15.71171427]
[1736045363938,3.65559458,3641.1,3640.9,15.71171427]
[1736045365036,3.65559458,3641.1,3640.9,8.60495448]
[1736045366244,3.65559458,3641.1,3640.9,8.87964448]
[1736045366539,3.65559458,3641.1,3640.9,8.60495448]
[1736045366740,3.93027458,3641.1,3640.9,8.60495448]
[1736045366940,3.65559458,3641.1,3640.9,8.60495448]
[1736045367143,3.93027458,3641.1,3640.9,8.60495448]
[1736045368243,3.24342133,3641.1,3640.9,8.60495448]
[1736045369238,0.27469,3641.0,3640.9,8.60495448]
[1736045369436,1.15529,3641.0,3640.9,8.60495448]
[1736045370838,4.39871133,3641.0,3640.9,8.60495448]
[1736045371937,1.15529,3641.0,3640.9,8.60495448]
[1736045372650,0.8806,3641.0,3640.9,8.60495448]
[1736045372855,3.24342133,3641.1,3640.9,8.60495448]
[1736045374546,3.65559209,3641.1,3640.9,8.60495448]
[1736045377240,3.93027209,3641.1,3640.9,8.60495448]
[1736045377441,3.65559209,3641.1,3640.9,8.60495448]
[1736045380450,3.24342133,3641.0,3640.9,8.60495448]
[1736045381550,3.24342133,3641.0,3640.9,0.27469]
[1736045381748,3.65559209,3641.1,3640.9,0.27469]
[1736045381948,3.65559209,3641.1,3640.9,7.38266341]
[1736045383451,3.24342133,3641.1,3641.0,8.64277026]
[1736045387649,3.65559209,3641.1,3641.0,8.64277026]
[1736045390555,3.24342133,3641.1,3641.0,8.64277026]
[1736045393960,3.65559209,3641.1,3641.0,8.64277026]
[1736045397559,3.93027209,3641.1,3641.0,8.64277026]
[1736045397759,3.65559209,3641.1,3641.0,8.64277026]
[1736045398555,3.24342133,3641.1,3641.0,8.64277026]
[1736045399548,3.51810133,3641.1,3641.0,8.64277026]
[1736045399753,3.24342133,3641.1,3641.0,8.64277026]
[1736045399957,3.65559209,3641.1,3641.0,8.64277026]
[1736045404062,3.93027209,3641.1,3641.0,8.64277026]
[1736045404261,0.68685076,3641.1,3641.0,8.64277026]
[1736045405969,5.00756933,3641.2,3640.9,8.64277026]
[1736045407468,4.59539857,3641.2,3641.1,6.48201944]
[1736045408763,5.00756948,3641.2,3641.1,6.48201944]
[1736045414164,0.68684091,3641.2,3641.1,6.48201944]
[1736045416872,5.00756948,3641.2,3641.1,6.48201944]
[1736045420672,4.73289948,3641.2,3641.1,6.75669944]
[1736045420862,4.73289948,3641.2,3641.1,7.75202155]
[1736045421361,3.65719363,3641.2,3641.1,9.91277237]
[1736045422167,2.16263743,3641.3,3641.1,8.09593616]
[1736045422373,2.16263743,3641.3,3641.2,0.70467]
[1736045422575,2.16263743,3641.3,3641.2,1.12877]
[1736045423771,2.16263743,3641.3,3641.2,16.86177097]
[1736045425079,2.16263743,3641.4,3641.3,0.27466]
[1736045427476,2.16263743,3641.4,3641.2,9.76115692]
[1736045430076,2.16263743,3641.4,3641.3,6.47075126]
[1736045431476,2.16263743,3641.5,3641.3,6.47075126]
[1736045433586,0.27466,3641.4,3641.3,6.47075126]
[1736045433786,1.14586,3641.4,3641.3,6.47075126]
[1736045434880,1.28336344,3641.4,3641.1,12.94617041]
[1736045435080,1.26999211,3641.2,3641.1,4.31378349]
[1736045435387,2.26531422,3641.2,3641.1,4.31378349]
[1736045435580,1.26999211,3641.2,3641.1,4.31378349]
[1736045436080,1.48538746,3641.2,3641.1,4.31378349]
[1736045436784,1.48538746,3641.2,3641.0,6.47075126]
[1736045436785,6.30093185,3641.2,3641.0,6.47075126]
[1736045437091,4.20312211,3641.1,3640.5,4.31378349]
[1736045437389,4.20312211,3640.6,3640.5,4.31378349]
[1736045437686,4.47784211,3640.6,3640.5,4.31378349]
[1736045438190,0.27472,3640.5,3640.4,4.31378349]
[1736045438491,1.57182,3640.5,3640.4,4.31378349]
[1736045439492,1.57182,3640.5,3640.0,4.31378349]
[1736045439493,1.70926344,3640.5,3640.0,4.31378349]
[1736045439696,1.27007211,3640.1,3640.0,4.31378349]
[1736045440993,1.27007211,3640.1,3639.9,0.4458]
[1736045441395,0.27476,3640.0,3639.9,0.4458]
[1736045441787,4.20312211,3640.1,3639.9,0.4458]
[1736045441995,4.47788211,3640.1,3639.9,0.4458]
[1736045442693,4.20312211,3640.1,3639.9,0.4458]
[1736045442995,4.47788211,3640.1,3639.9,0.4458]
[1736045444996,4.20312211,3640.1,3639.9,0.4458]
[1736045445499,3.2078,3640.1,3640.0,0.4134]
[1736045448499,3.2078,3640.1,3640.0,0.68816]
[1736045449990,2.15880756,3640.6,3640.5,0.27472]
[1736045450192,7.44133346,3640.8,3640.5,1.27004211]
[1736045450193,4.20312211,3640.8,3640.5,1.27004211]
[1736045450392,4.20312211,3640.8,3640.6,0.8436]
[1736045450594,4.20312211,3640.8,3640.6,1.2734]
[1736045451395,0.99532211,3640.8,3640.6,1.2734]
[1736045454201,0.99532211,3640.8,3640.3,4.31378349]
[1736045454202,4.20312211,3640.8,3640.3,4.31378349]
[1736045454396,0.27472,3640.6,3640.4,0.4115]
[1736045454999,1.11241,3640.7,3640.4,0.4115]
[1736045455504,1.27004211,3640.5,3640.4,0.4115]
[1736045457203,0.99532211,3640.5,3640.4,0.4115]
[1736045468410,1.27004211,3640.5,3640.4,0.4115]
[1736045468609,0.99532211,3640.5,3640.4,0.4115]
[1736045470205,0.4078,3640.6,3640.4,0.4115]
[1736045470409,0.6893,3640.9,3640.4,0.68623]
[1736045470711,0.99532211,3640.5,3640.4,0.4115]
[1736045471900,0.99532211,3640.5,3640.2,0.4447]
[1736045472209,0.433,3640.4,3640.2,0.8863]
[1736045472813,0.433,3640.4,3640.2,0.4416]
[1736045475520,0.433,3640.4,3640.2,0.71634]
[1736045475712,0.27472,3640.6,3640.3,0.27474]
[1736045476107,0.27472,3640.6,3640.2,0.71634]
[1736045476318,0.27472,3640.6,3640.2,5.03012349]
[1736045478920,0.99532211,3640.5,3640.3,4.31378349]
[1736045479213,1.42272211,3640.5,3640.3,4.31378349]
[1736045480510,0.4312,3640.4,3640.3,4.31378349]
[1736045481215,2.59000756,3640.4,3640.2,4.75538349]
[1736045482108,1.27006211,3640.3,3640.2,4.31378349]
[1736045482417,1.68286211,3640.3,3640.2,4.31378349]
[1736045483812,0.27475,3640.2,3640.0,4.31378349]
[1736045484010,0.99532211,3640.1,3640.0,4.31378349]
[1736045484216,1.27007211,3640.1,3640.0,4.31378349]
[1736045485323,3.43042152,3640.1,3640.0,4.31378349]
[1736045486617,3.43042152,3640.1,3639.9,4.73848349]
[1736045486822,0.27476,3640.0,3639.9,4.31378349]
[1736045487026,1.70128211,3640.0,3639.9,4.31378349]
[1736045488327,0.27481,3639.4,3639.2,4.74368349]
[1736045488517,0.99532211,3639.3,3639.2,4.74368349]
[1736045489525,0.99532211,3639.3,3639.2,0.4299]
[1736045491423,1.27013211,3639.3,3639.2,0.4299]
[1736045492617,0.99532211,3639.3,3638.9,4.75018349]
[1736045492932,0.99532211,3639.1,3638.9,0.4364]
[1736045494230,1.27015211,3639.1,3638.9,0.4364]
[1736045494532,0.99532211,3639.1,3638.9,0.4364]
[1736045501030,1.27015211,3639.1,3638.9,0.4364]
[1736045502237,0.99532211,3639.1,3638.9,0.4364]
[1736045502832,0.99532211,3639.3,3639.0,0.27484]
[1736045503031,0.99532211,3639.3,3639.1,0.8463]
[1736045505530,0.27482,3639.2,3639.1,0.8463]
[1736045506128,0.27482,3639.2,3638.9,0.4364]
[1736045506335,0.99532211,3639.1,3638.9,0.4364]
[1736045507341,1.27015211,3639.1,3638.9,0.4364]
[1736045507638,0.99532211,3639.1,3638.9,0.4364]
[1736045514039,0.27484,3639.0,3638.9,0.4364]
[1736045517744,1.27015211,3639.1,3638.9,0.4364]
[1736045518345,0.27484,3639.0,3638.9,0.4364]
[1736045520643,1.27015211,3639.1,3638.9,0.4364]
[1736045526053,0.99532211,3639.1,3638.9,0.4364]
[1736045526353,0.27484,3639.0,3638.9,0.4364]
[1736045526658,1.10514,3639.0,3638.9,0.4364]
[1736045527658,0.8303,3639.0,3638.8,4.31378349]
[1736045527853,1.42272211,3638.9,3638.8,4.31378349]
[1736045529156,1.69756211,3638.9,3638.8,4.31378349]